[Event "Commonwealth Open 2019"]
[Site "Delhi"]
[Date "2019.07.03"]
[Round "5.10"]
[White "Nitin, S.."]
[Black "Krishna, C R G"]
[Result "1-0"]
[ECO "A06"]
[WhiteElo "2398"]
[BlackElo "2481"]
[Annotator "ChessBase"]
[PlyCount "133"]
[EventDate "2019.06.30"]
[EventType "swiss"]
[EventCountry "IND"]
[SourceTitle "playchess.com"]
[Source "ChessBase"]
[SourceQuality "1"]
[TimeControl "5400+30"]

1. Nf3 {[%emt 0:00:06]} d5 {[%emt 0:00:59]} 2. g3 {[%emt 0:00:34]} c6 {[%emt 0:02:20]} 3. Bg2 {[%emt 0:00:21]} Bg4 {[%emt 0:00:07]} 4. O-O {[%emt 0:00:59]} Nd7 {[%emt 0:00:06]} 5. d3 {[%emt 0:00:26]} e6 {[%emt 0:00:09]} 6. Nbd2 {[%emt 0:01:53]} Bd6 {[%emt 0:00:09]} 7. Qe1 {[%emt 0:00:44]} Ne7 {[%emt 0:01:34]} 8. e4 {[%emt 0:04:21]} O-O {[%emt 0:04:31]} 9. h3 {[%emt 0:00:11]} Bh5 {[%emt 0:02:00]} 10. d4 {[%emt 0:09:30]} c5 {[%emt 0:07:12]} 11. e5 {[%emt 0:06:31]} Bc7 {[%emt 0:00:32]} 12. c3 {[%emt 0:00:09]} Nc6 {[%emt 0:14:26]} 13. Nb3 {[%emt 0:01:09]} cxd4 {[%emt 0:01:10]} 14. cxd4 {[%emt 0:00:34]} a5 {[%emt 0:00:36]} 15. a4 {[%emt 0:06:35]} Qb8 {[%emt 0:34:43]} 16. Qe2 {[%emt 0:03:50]} Qa7 {[%emt 0:04:45]} 17. Be3 {[%emt 0:00:31]} Qb6 {[%emt 0:01:36]} 18. Nbd2 {[%emt 0:14:06]} Bd8 {[%emt 0:02:00]} 19. Qe1 {[%emt 0:00:00]} Bc7 {[%emt 0:00:00]} 20. Qe2 {[%emt 0:01:00]} Bd8 {[%emt 0:01:00]} 21. Rfc1 {[%emt 0:04:24]} Be7 {[%emt 0:02:13]} 22. Qb5 {[%emt 0:01:15]} Rfc8 {[%emt 0:01:13]} 23. Bf1 {[%emt 0:01:15]} Rc7 {[%emt 0:03:56]} 24. Ne1 {[%emt 0:02:29]} Rac8 {[%emt 0:04:44]} 25. Nb3 {[%emt 0:01:02]} Bg6 {[%emt 0:06:23]} 26. f4 {[%emt 0:07:12]} Bb4 {[%emt 0:02:09]} 27. Nd3 {[%emt 0:01:16]} Bxd3 {[%emt 0:00:29]} 28. Qxd3 {[%emt 0:02:21]} Ne7 {[%emt 0:00:08]} 29. Bf2 {[%emt 0:02:36]} Rxc1 {[%emt 0:00:38]} 30. Rxc1 {[%emt 0:00:11]} Rxc1 {[%emt 0:01:16]} 31. Nxc1 {[%emt 0:00:02]} Qc6 {[%emt 0:01:53]} 32. Qd1 {[%emt 0:00:02]} Nb6 {[%emt 0:00:30]} 33. Bb5 {[%emt 0:00:15]} Qc7 {[%emt 0:00:09]} 34. Nd3 {[%emt 0:00:19]} Nec8 {[%emt 0:00:53]} 35. Nxb4 {[%emt 0:06:38]} axb4 {[%emt 0:00:01]} 36. Be1 {[%emt 0:00:27]} Na7 {[%emt 0:00:15]} 37. Bd3 {[%emt 0:00:25]} Nc6 {[%emt 0:00:27]} 38. Qc2 {[%emt 0:04:47]} b3 {[%emt 0:00:10]} 39. Qxb3 {[%emt 0:00:59]} Nxd4 {[%emt 0:00:11]} 40. Qc3 {[%emt 0:00:23]} Qxc3 {[%emt 0:01:44]} 41. Bxc3 {[%emt 0:00:09]} Nc6 {[%emt 0:00:06]} 42. b3 {[%emt 0:02:33]} Kf8 {[%emt 0:01:05]} 43. Kf2 {[%emt 0:00:30]} h6 {[%emt 0:00:19]} 44. Bb5 {[%emt 0:00:40]} Nd7 {[%emt 0:00:42]} 45. b4 {[%emt 0:03:22]} Ke8 {[%emt 0:00:25]} 46. a5 {[%emt 0:00:26]} Ncb8 {[%emt 0:00:34]} 47. Be2 {[%emt 0:01:36]} Kd8 {[%emt 0:00:26]} 48. b5 {[%emt 0:00:23]} Nc5 {[%emt 0:00:26]} 49. Bd4 {[%emt 0:00:08]} Nbd7 {[%emt 0:00:39]} 50. Bd1 {[%emt 0:05:04]} b6 {[%emt 0:00:29]} 51. a6 {[%emt 0:01:03]} Kc7 {[%emt 0:00:02]} 52. Bc2 {[%emt 0:00:17]} Nf8 {[%emt 0:00:47]} 53. g4 {[%emt 0:01:39]} Ncd7 {[%emt 0:00:20]} 54. h4 {[%emt 0:00:42]} Nc5 {[%emt 0:00:50]} 55. Kg3 {[%emt 0:01:00]} Nfd7 {[%emt 0:00:31]} 56. h5 {[%emt 0:01:16]} Nf8 {[%emt 0:00:25]} 57. g5 {[%emt 0:01:59]} Ncd7 {[%emt 0:00:36]} 58. Kh4 {[%emt 0:00:41]} Nc5 {[%emt 0:00:11]} 59. gxh6 {[%emt 0:01:09]} gxh6 {[%emt 0:00:02]} 60. Be3 {[%emt 0:00:26]} Ne4 {[%emt 0:01:16]} 61. Bxe4 {[%emt 0:01:25]} dxe4 {[%emt 0:00:02]} 62. f5 {[%emt 0:00:22]} exf5 {[%emt 0:00:47]} 63. Bxh6 {[%emt 0:00:10]} Ne6 {[%emt 0:00:03]} 64. Kg3 {[%emt 0:00:54]} Kb8 {[%emt 0:00:11]} 65. Be3 {[%emt 0:00:24]} Ka7 {[%emt 0:00:05]} 66. h6 {[%emt 0:00:29]} Nf8 {[%emt 0:00:06]} 67. Kf4 {[%emt 0:00:25]} 1-0

[Event "Commonwealth Open 2019"]
[Site "Delhi"]
[Date "2019.07.03"]
[Round "5.11"]
[White "Kunte, Abhijit"]
[Black "Bhambure, Shantanu"]
[Result "1/2-1/2"]
[ECO "A05"]
[WhiteElo "2478"]
[BlackElo "2248"]
[Annotator "ChessBase"]
[PlyCount "60"]
[EventDate "2019.06.30"]
[EventType "swiss"]
[EventCountry "IND"]
[SourceTitle "playchess.com"]
[Source "ChessBase"]
[SourceQuality "1"]
[TimeControl "5400+30"]

1. Nf3 {[%emt 0:17:31]} Nf6 {[%emt 0:00:00]} 2. g3 {[%emt 0:00:55]} d5 {[%emt 0:00:54]} 3. Bg2 {[%emt 0:01:33]} e6 {[%emt 0:00:47]} 4. O-O {[%emt 0:01:04]} c5 {[%emt 0:00:15]} 5. c4 {[%emt 0:00:22]} dxc4 {[%emt 0:00:31]} 6. Na3 {[%emt 0:00:33]} Nc6 {[%emt 0:00:35]} 7. Nxc4 {[%emt 0:00:16]} Be7 {[%emt 0:00:29]} 8. b3 {[%emt 0:00:30]} O-O {[%emt 0:00:19]} 9. Bb2 {[%emt 0:00:09]} Qc7 {[%emt 0:00:24]} 10. Rc1 {[%emt 0:01:34]} Rd8 {[%emt 0:07:02]} 11. Nfe5 {[%emt 0:01:51]} Bd7 {[%emt 0:01:35]} 12. a4 {[%emt 0:00:12]} Rac8 {[%emt 0:03:52]} 13. e3 {[%emt 0:00:13]} Be8 {[%emt 0:05:21]} 14. g4 {[%emt 0:12:21]} Nd5 {[%emt 0:05:10]} 15. f4 {[%emt 0:00:10]} f6 {[%emt 0:12:07]} 16. Nxc6 {[%emt 0:20:51]} Bxc6 {[%emt 0:00:45]} 17. g5 {[%emt 0:00:10]} Nb4 {[%emt 0:12:27]} 18. gxf6 {[%emt 0:02:32]} Bxf6 {[%emt 0:01:28]} 19. Bxc6 {[%emt 0:10:06]} Qxc6 {[%emt 0:03:31]} 20. Bxf6 {[%emt 0:06:53]} gxf6 {[%emt 0:00:10]} 21. Qf3 {[%emt 0:01:49]} Qxf3 {[%emt 0:09:39]} 22. Rxf3 {[%emt 0:00:05]} Rd3 {[%emt 0:02:05]} 23. Rb1 {[%emt 0:01:08]} Kf7 {[%emt 0:03:26]} 24. Kf2 {[%emt 0:00:11]} Rg8 {[%emt 0:01:09]} 25. Rg3 {[%emt 0:00:40]} Rg6 {[%emt 0:01:34]} 26. Ke2 {[%emt 0:00:54]} Kg7 {[%emt 0:04:47]} 27. Na5 {[%emt 0:04:35]} Rd7 {[%emt 0:01:17]} 28. Nc4 {[%emt 0:00:05]} Rd3 {[%emt 0:00:26]} 29. Na5 {[%emt 0:04:07]} Rd7 {[%emt 0:00:05]} 30. Nc4 {[%emt 0:00:04]} Rd3 1/2-1/2

[Event "Commonwealth Open 2019"]
[Site "Delhi"]
[Date "2019.07.03"]
[Round "5.12"]
[White "Wagh, Suyog"]
[Black "Thejkumar, M. S."]
[Result "1/2-1/2"]
[ECO "A06"]
[WhiteElo "2250"]
[BlackElo "2458"]
[Annotator "ChessBase"]
[PlyCount "80"]
[EventDate "2019.06.30"]
[EventType "swiss"]
[EventCountry "IND"]
[SourceTitle "playchess.com"]
[Source "ChessBase"]
[SourceQuality "1"]
[TimeControl "5400+30"]

1. Nf3 {[%emt 0:01:19]} d5 {[%emt 0:00:00]} 2. g3 {[%emt 0:07:10]} Nf6 {[%emt 0:03:48]} 3. Bg2 {[%emt 0:00:25]} Bf5 {[%emt 0:00:30]} 4. O-O {[%emt 0:05:57]} e6 {[%emt 0:00:36]} 5. d3 {[%emt 0:00:19]} h6 {[%emt 0:00:36]} 6. c4 {[%emt 0:01:33]} c6 {[%emt 0:00:26]} 7. b3 {[%emt 0:01:06]} Be7 {[%emt 0:01:46]} 8. Nbd2 {[%emt 0:02:12]} O-O {[%emt 0:01:40]} 9. Bb2 {[%emt 0:00:04]} a5 {[%emt 0:01:55]} 10. a3 {[%emt 0:00:04]} Nbd7 {[%emt 0:01:06]} 11. Ra2 {[%emt 0:03:21]} Bh7 {[%emt 0:07:56]} 12. Qa1 {[%emt 0:02:13]} Re8 {[%emt 0:02:25]} 13. Ne5 {[%emt 0:03:29]} Nc5 {[%emt 0:14:03]} 14. Bc3 {[%emt 0:11:14]} Bf8 {[%emt 0:05:41]} 15. Rc2 {[%emt 0:12:02]} Nfd7 {[%emt 0:09:26]} 16. Rcc1 {[%emt 0:05:26]} Nxe5 {[%emt 0:08:55]} 17. Bxe5 {[%emt 0:00:21]} f6 {[%emt 0:02:56]} 18. Bb2 {[%emt 0:12:53]} Kh8 {[%emt 0:07:13]} 19. d4 {[%emt 0:05:37]} Ne4 {[%emt 0:00:18]} 20. Nxe4 {[%emt 0:00:19]} dxe4 {[%emt 0:01:54]} 21. Bc3 {[%emt 0:02:43]} Qe7 {[%emt 0:06:45]} 22. c5 {[%emt 0:04:32]} Qd7 {[%emt 0:04:51]} 23. Qb2 {[%emt 0:00:44]} Be7 {[%emt 0:02:40]} 24. b4 {[%emt 0:03:51]} Bd8 {[%emt 0:02:38]} 25. bxa5 {[%emt 0:02:39]} Bxa5 {[%emt 0:00:11]} 26. Bxa5 Rxa5 {[%emt 0:00:06]} 27. e3 {[%emt 0:01:26]} e5 {[%emt 0:05:07]} 28. Rfd1 {[%emt 0:01:58]} exd4 {[%emt 0:00:21]} 29. Rxd4 {[%emt 0:00:48]} Qe7 {[%emt 0:00:06]} 30. Rb4 {[%emt 0:01:32]} Rxc5 {[%emt 0:02:18]} 31. Rxc5 {[%emt 0:00:14]} Qxc5 {[%emt 0:00:11]} 32. Rxb7 {[%emt 0:00:06]} Bg8 {[%emt 0:00:28]} 33. h3 {[%emt 0:02:36]} Qd6 {[%emt 0:03:25]} 34. Kh2 Bd5 {[%emt 0:01:54]} 35. Rb4 {[%emt 0:02:53]} c5 {[%emt 0:00:52]} 36. Rb5 {[%emt 0:00:43]} Bc4 {[%emt 0:01:04]} 37. Rb6 {[%emt 0:00:55]} Qc7 {[%emt 0:00:13]} 38. Rb7 {[%emt 0:00:40]} Qd6 {[%emt 0:00:20]} 39. Rb6 {[%emt 0:00:19]} Qc7 {[%emt 0:00:28]} 40. Rb7 {[%emt 0:00:07]} Qd6 {[%emt 0:00:27]} 1/2-1/2

[Event "Commonwealth Open 2019"]
[Site "Delhi"]
[Date "2019.07.03"]
[Round "5.13"]
[White "Ajay Karthikeyan"]
[Black "Jubin Jimmy"]
[Result "1-0"]
[ECO "A45"]
[WhiteElo "2216"]
[BlackElo "2219"]
[Annotator "NA"]
[PlyCount "105"]
[EventDate "2019.06.30"]
[EventType "swiss"]
[EventCountry "IND"]
[SourceTitle "playchess.com"]
[Source "ChessBase"]
[SourceQuality "1"]
[TimeControl "5400+30"]

1. d4 {[%emt 0:03:51]} Nf6 {[%emt 0:00:00]} 2. Bf4 {[%emt 0:00:41]} e6 {[%emt 0:00:00]} 3. e3 {[%emt 0:01:03]} d5 {[%emt 0:00:00]} 4. Nf3 {[%emt 0:00:23]} c5 {[%emt 0:01:12]} 5. c3 {[%emt 0:00:07]} Bd6 {[%emt 0:00:15]} 6. Bg3 {[%emt 0:00:10]} O-O {[%emt 0:00:11]} 7. Nbd2 {[%emt 0:00:21]} Qc7 {[%emt 0:00:13]} 8. dxc5 {[%emt 0:00:35]} Qxc5 {[%emt 0:00:16]} 9. Bd3 {[%emt 0:00:20]} Qc7 {[%emt 0:03:20]} 10. O-O {[%emt 0:01:26]} Bxg3 {[%emt 0:06:01]} 11. hxg3 {[%emt 0:00:10]} Nbd7 {[%emt 0:04:52]} 12. e4 {[%emt 0:04:16]} dxe4 {[%emt 0:01:27]} 13. Nxe4 Nxe4 {[%emt 0:00:17]} 14. Bxe4 {[%emt 0:05:25]} Nf6 {[%emt 0:00:14]} 15. Qe2 {[%emt 0:01:56]} Bd7 16. Ne5 {[%emt 0:02:57]} Rfd8 {[%emt 0:07:01]} 17. Bc2 {[%emt 0:10:20]} Bc6 {[%emt 0:03:40]} 18. Rfd1 {[%emt 0:02:42]} h6 {[%emt 0:04:12]} 19. Qe3 {[%emt 0:17:15]} Nd5 {[%emt 0:05:39]} 20. Qd4 {[%emt 0:02:32]} a6 {[%emt 0:12:21]} 21. Nxc6 {[%emt 0:05:04]} Qxc6 {[%emt 0:16:16]} 22. Qd3 {[%emt 0:10:47]} g6 {[%emt 0:03:06]} 23. Qd2 {[%emt 0:04:17]} Kg7 {[%emt 0:02:45]} 24. Qd4+ {[%emt 0:00:08]} Nf6 {[%emt 0:01:05]} 25. Qe5 {[%emt 0:00:54]} Qb6 {[%emt 0:02:12]} 26. c4 {[%emt 0:07:12]} Rxd1+ {[%emt 0:04:04]} 27. Rxd1 {[%emt 0:00:06]} Rd8 {[%emt 0:00:05]} 28. c5 {[%emt 0:01:57]} Rxd1+ {[%emt 0:00:17]} 29. Bxd1 {[%emt 0:00:01]} Qb4 {[%emt 0:05:51]} 30. Bf3 {[%emt 0:01:39]} g5 {[%emt 0:01:26]} 31. a3 {[%emt 0:01:22]} Qd2 {[%emt 0:01:06]} 32. g4 {[%emt 0:06:54]} Kg6 {[%emt 0:03:45]} 33. g3 {[%emt 0:00:55]} Qd7 {[%emt 0:04:15]} 34. Kg2 {[%emt 0:01:55]} Kg7 {[%emt 0:02:04]} 35. b4 {[%emt 0:02:12]} Qe7 {[%emt 0:01:10]} 36. a4 {[%emt 0:02:45]} Qd7 {[%emt 0:02:04]} 37. a5 {[%emt 0:01:54]} Qb5 {[%emt 0:00:48]} 38. Qc3 {[%emt 0:00:46]} Kg6 {[%emt 0:01:04]} 39. c6 {[%emt 0:00:45]} bxc6 {[%emt 0:00:14]} 40. Bxc6 {[%emt 0:00:05]} Qb8 {[%emt 0:00:10]} 41. Qd3+ {[%emt 0:01:44]} Kg7 {[%emt 0:00:06]} 42. Qxa6 {[%emt 0:00:31]} Qxb4 {[%emt 0:00:40]} 43. Qb6 {[%emt 0:00:21]} Qc4 {[%emt 0:01:39]} 44. a6 {[%emt 0:00:33]} Nd5 {[%emt 0:00:38]} 45. Bxd5 {[%emt 0:00:12]} Qxd5+ {[%emt 0:00:16]} 46. Kh2 {[%emt 0:00:08]} e5 {[%emt 0:03:27]} 47. a7 {[%emt 0:00:08]} Qf3 {[%emt 0:00:05]} 48. Qe3 {[%emt 0:00:52]} Qd5 {[%emt 0:00:03]} 49. Qa3 {[%emt 0:00:07]} Qa8 {[%emt 0:00:05]} 50. Qa6 {[%emt 0:00:18]} h5 {[%emt 0:01:50]} 51. gxh5 {[%emt 0:00:21]} e4 {[%emt 0:00:20]} 52. h6+ {[%emt 0:00:14]} Kh7 {[%emt 0:00:04]} 53. Qf6 {[%emt 0:00:06]} 1-0

[Event "Commonwealth Open 2019"]
[Site "Delhi"]
[Date "2019.07.03"]
[Round "5.14"]
[White "Iniyan, P."]
[Black "Arpita, Mukherjee"]
[Result "1-0"]
[ECO "A50"]
[WhiteElo "2525"]
[BlackElo "2248"]
[Annotator "ChessBase"]
[PlyCount "61"]
[EventDate "2019.06.30"]
[EventType "swiss"]
[EventCountry "IND"]
[SourceTitle "playchess.com"]
[Source "ChessBase"]
[SourceQuality "1"]
[TimeControl "5400+30"]

1. d4 {[%emt 0:00:43]} Nf6 {[%emt 0:00:42]} 2. c4 {[%emt 0:00:07]} b6 {[%emt 0:00:14]} 3. Nc3 {[%emt 0:01:48]} Bb7 {[%emt 0:00:10]} 4. Nf3 {[%emt 0:00:09]} Ne4 {[%emt 0:00:18]} 5. e3 {[%emt 0:01:31]} e6 {[%emt 0:02:24]} 6. Bd3 {[%emt 0:00:07]} Nxc3 {[%emt 0:02:39]} 7. bxc3 {[%emt 0:00:07]} d5 {[%emt 0:01:52]} 8. O-O {[%emt 0:00:24]} Bd6 {[%emt 0:00:54]} 9. cxd5 {[%emt 0:04:28]} exd5 {[%emt 0:01:01]} 10. Qc2 {[%emt 0:00:08]} c5 {[%emt 0:04:52]} 11. dxc5 {[%emt 0:12:08]} bxc5 {[%emt 0:03:37]} 12. c4 {[%emt 0:00:30]} dxc4 {[%emt 0:39:34]} 13. Be4 {[%emt 0:00:28]} Qc7 {[%emt 0:00:32]} 14. Bxb7 {[%emt 0:01:46]} Qxb7 {[%emt 0:00:15]} 15. Rd1 {[%emt 0:00:50]} Be7 {[%emt 0:00:51]} 16. Rb1 {[%emt 0:01:16]} Qa6 {[%emt 0:08:50]} 17. Qe4 {[%emt 0:04:52]} Qg6 {[%emt 0:02:48]} 18. Qb7 {[%emt 0:03:02]} O-O {[%emt 0:04:55]} 19. Ne5 {[%emt 0:00:07]} Qe6 {[%emt 0:06:16]} 20. Qxa8 {[%emt 0:02:18]} Qxe5 {[%emt 0:00:09]} 21. Bb2 {[%emt 0:00:27]} c3 {[%emt 0:05:29]} 22. Bxc3 {[%emt 0:00:47]} Qxc3 {[%emt 0:00:05]} 23. Rxb8 {[%emt 0:00:09]} Qc2 {[%emt 0:00:15]} 24. Rxf8+ {[%emt 0:00:06]} Bxf8 {[%emt 0:00:04]} 25. Qd5 {[%emt 0:00:10]} c4 {[%emt 0:00:11]} 26. Qd2 {[%emt 0:00:05]} Qa4 {[%emt 0:04:38]} 27. Rc1 {[%emt 0:00:06]} Ba3 {[%emt 0:00:38]} 28. Qc2 {[%emt 0:00:29]} Qe8 {[%emt 0:01:10]} 29. Rd1 {[%emt 0:00:09]} Qc8 {[%emt 0:01:19]} 30. Qc3 {[%emt 0:00:19]} Be7 {[%emt 0:02:13]} 31. Rc1 {[%emt 0:00:06]} 1-0

[Event "Commonwealth Open 2019"]
[Site "Delhi"]
[Date "2019.07.03"]
[Round "5.16"]
[White "Vaishali, R."]
[Black "Mahindrakar Indrajeet"]
[Result "1-0"]
[ECO "B00"]
[WhiteElo "2338"]
[BlackElo "2092"]
[Annotator "NA"]
[PlyCount "56"]
[EventDate "2019.06.30"]
[EventType "swiss"]
[EventCountry "IND"]
[SourceTitle "playchess.com"]
[Source "ChessBase"]
[SourceQuality "1"]
[TimeControl "5400+30"]

1. e4 {[%emt 0:00:00]} Nc6 {[%emt 0:00:53]} 2. Nf3 {[%emt 0:00:27]} d6 {[%emt 0:00:18]} 3. d4 {[%emt 0:00:53]} Nf6 {[%emt 0:00:19]} 4. Nc3 {[%emt 0:00:17]} g6 {[%emt 0:01:04]} 5. d5 {[%emt 0:03:47]} Nb8 {[%emt 0:02:06]} 6. Be3 {[%emt 0:00:34]} Bg7 {[%emt 0:00:38]} 7. Qd2 {[%emt 0:00:47]} O-O {[%emt 0:02:22]} 8. Bh6 {[%emt 0:04:41]} c6 {[%emt 0:02:54]} 9. O-O-O {[%emt 0:02:22]} cxd5 {[%emt 0:10:50]} 10. exd5 {[%emt 0:01:33]} Bg4 {[%emt 0:01:15]} 11. Be2 {[%emt 0:03:09]} Nbd7 {[%emt 0:06:19]} 12. Bxg7 {[%emt 0:12:33]} Kxg7 {[%emt 0:03:57]} 13. h3 {[%emt 0:00:10]} Bxf3 {[%emt 0:01:13]} 14. Bxf3 {[%emt 0:00:08]} Qa5 {[%emt 0:08:29]} 15. g4 {[%emt 0:03:41]} h6 {[%emt 0:48:35]} 16. Be2 {[%emt 0:09:16]} b5 {[%emt 0:00:56]} 17. a3 {[%emt 0:19:54]} Rab8 {[%emt 0:00:28]} 18. h4 {[%emt 0:03:26]} b4 {[%emt 0:00:30]} 19. Na2 {[%emt 0:00:48]} Qb6 {[%emt 0:04:48]} 20. axb4 {[%emt 0:03:26]} Rfc8 {[%emt 0:01:01]} 21. g5 {[%emt 0:02:20]} hxg5 {[%emt 0:00:39]} 22. hxg5 {[%emt 0:00:06]} Ne4 {[%emt 0:00:14]} 23. Qf4 {[%emt 0:00:54]} Nxf2 24. Rdf1 {[%emt 0:00:34]} Ne5 {[%emt 0:01:38]} 25. Rxf2 {[%emt 0:01:01]} Rh8 {[%emt 0:00:30]} 26. Rfh2 {[%emt 0:02:01]} Rxh2 {[%emt 0:00:22]} 27. Qxh2 {[%emt 0:00:09]} Qe3+ {[%emt 0:00:33]} 28. Kb1 {[%emt 0:00:02]} Ra8 1-0

[Event "Commonwealth Open 2019"]
[Site "Delhi"]
[Date "2019.07.03"]
[Round "5.17"]
[White "Sangma, Rahul"]
[Black "Patil, Harshal"]
[Result "1-0"]
[ECO "A05"]
[WhiteElo "2298"]
[BlackElo "1809"]
[Annotator "NA"]
[PlyCount "52"]
[EventDate "2019.06.30"]
[EventType "swiss"]
[EventCountry "IND"]
[SourceTitle "playchess.com"]
[Source "ChessBase"]
[SourceQuality "1"]
[TimeControl "5400+30"]

1. Nf3 {[%emt 0:00:00]} Nf6 {[%emt 0:00:00]} 2. c4 {[%emt 0:00:00]} b6 {[%emt 0:01:15]} 3. g3 {[%emt 0:00:43]} Bb7 {[%emt 0:00:15]} 4. Bg2 {[%emt 0:00:02]} e6 {[%emt 0:03:16]} 5. b3 {[%emt 0:00:30]} Be7 {[%emt 0:00:30]} 6. Bb2 {[%emt 0:00:30]} O-O {[%emt 0:00:11]} 7. O-O {[%emt 0:00:11]} c5 {[%emt 0:00:50]} 8. Nc3 {[%emt 0:00:40]} d5 {[%emt 0:01:55]} 9. e3 {[%emt 0:00:22]} Nc6 {[%emt 0:13:13]} 10. cxd5 {[%emt 0:00:49]} Nxd5 {[%emt 0:00:42]} 11. Nxd5 {[%emt 0:00:30]} Qxd5 {[%emt 0:02:08]} 12. d4 Rfd8 {[%emt 0:07:17]} 13. Ne5 {[%emt 0:10:26]} Qd6 {[%emt 0:00:21]} 14. Qf3 {[%emt 0:01:29]} Nxe5 {[%emt 0:10:34]} 15. Qxb7 {[%emt 0:00:34]} cxd4 {[%emt 0:02:54]} 16. Rad1 {[%emt 0:04:34]} Bf6 {[%emt 0:17:36]} 17. Rxd4 {[%emt 0:01:55]} Qc5 {[%emt 0:05:34]} 18. Rfd1 {[%emt 0:34:51]} Rdc8 {[%emt 0:07:29]} 19. Qa6 {[%emt 0:15:17]} h5 {[%emt 0:03:12]} 20. Bxa8 {[%emt 0:09:06]} Rxa8 {[%emt 0:00:02]} 21. Rc1 {[%emt 0:00:20]} Qf8 {[%emt 0:03:16]} 22. Kg2 {[%emt 0:01:17]} Ng4 {[%emt 0:01:17]} 23. Rd2 {[%emt 0:05:14]} Qb4 {[%emt 0:04:22]} 24. Rc8+ {[%emt 0:00:34]} Rxc8 {[%emt 0:00:07]} 25. Qxc8+ {[%emt 0:00:02]} Kh7 {[%emt 0:00:02]} 26. Qc2+ {[%emt 0:01:38] Bxb2 h3+ Bf6 hxg4+} Kh6 {[%emt 0:03:04] gxh5} 1-0

[Event "Commonwealth Open 2019"]
[Site "Delhi"]
[Date "2019.07.03"]
[Round "5.18"]
[White "Kumar, Gaurav"]
[Black "Srihari L R"]
[Result "1/2-1/2"]
[ECO "B07"]
[WhiteElo "2110"]
[BlackElo "2200"]
[Annotator "NA"]
[PlyCount "119"]
[EventDate "2019.06.30"]
[EventType "swiss"]
[EventCountry "IND"]
[SourceTitle "playchess.com"]
[Source "ChessBase"]
[SourceQuality "1"]
[TimeControl "5400+30"]

1. e4 {[%emt 0:00:00]} d6 {[%emt 0:00:00]} 2. d4 {[%emt 0:00:00]} Nf6 {[%emt 0:00:05]} 3. Nc3 {[%emt 0:00:00]} e5 {[%emt 0:00:07]} 4. dxe5 {[%emt 0:10:27]} dxe5 {[%emt 0:00:02]} 5. Qxd8+ {[%emt 0:00:11]} Kxd8 {[%emt 0:00:02]} 6. Nf3 {[%emt 0:00:09]} Bd6 {[%emt 0:00:05]} 7. Bg5 {[%emt 0:00:49]} Be6 {[%emt 0:00:16]} 8. O-O-O {[%emt 0:01:02]} Nbd7 {[%emt 0:00:35]} 9. Bxf6+ {[%emt 0:02:49]} gxf6 {[%emt 0:02:33]} 10. Nh4 {[%emt 0:00:34]} Bc5 {[%emt 0:04:16]} 11. Nd5 {[%emt 0:08:26]} Bxf2 {[%emt 0:18:04]} 12. Nf5 {[%emt 0:01:02]} Kc8 {[%emt 0:02:16]} 13. Bc4 {[%emt 0:16:59]} c6 {[%emt 0:11:58]} 14. Nde3 {[%emt 0:01:00]} Bxe3+ {[%emt 0:00:11]} 15. Nxe3 {[%emt 0:00:06]} Kc7 {[%emt 0:07:38]} 16. Rhf1 {[%emt 0:01:16]} Rhg8 {[%emt 0:01:55]} 17. g3 {[%emt 0:09:25]} Rg6 {[%emt 0:11:05]} 18. Be2 {[%emt 0:06:40]} Nc5 {[%emt 0:05:53]} 19. Bc4 {[%emt 0:00:00]} Nd7 {[%emt 0:00:00]} 20. Be2 {[%emt 0:01:00]} Nc5 {[%emt 0:01:00]} 21. Bf3 {[%emt 0:03:57]} Rd8 {[%emt 0:00:55]} 22. Rxd8 {[%emt 0:06:05]} Kxd8 {[%emt 0:02:08]} 23. Nf5 {[%emt 0:00:15]} Bxf5 {[%emt 0:04:08]} 24. exf5 {[%emt 0:00:10]} Rg8 {[%emt 0:00:23]} 25. Rd1+ {[%emt 0:07:20]} Ke7 {[%emt 0:00:26]} 26. c3 {[%emt 0:01:31]} Nd7 {[%emt 0:03:49]} 27. c4 {[%emt 0:03:31]} Rg5 {[%emt 0:02:15]} 28. g4 {[%emt 0:00:51]} Rg8 {[%emt 0:02:30]} 29. Kc2 {[%emt 0:00:44]} a5 {[%emt 0:02:39]} 30. Kc3 {[%emt 0:06:28]} Rd8 {[%emt 0:00:22]} 31. a3 {[%emt 0:01:09]} Nc5 {[%emt 0:01:44]} 32. Rxd8 {[%emt 0:00:31]} Kxd8 {[%emt 0:00:01]} 33. b4 {[%emt 0:00:24]} axb4+ {[%emt 0:00:14]} 34. axb4 {[%emt 0:00:13]} Na4+ {[%emt 0:01:57]} 35. Kb3 {[%emt 0:00:14]} Nb6 {[%emt 0:00:05]} 36. c5 {[%emt 0:08:24]} Nc8 {[%emt 0:04:04]} 37. b5 {[%emt 0:01:31]} Na7 {[%emt 0:02:33]} 38. b6 {[%emt 0:00:42]} Nb5 {[%emt 0:00:09]} 39. Kb4 {[%emt 0:01:46]} Nd4 {[%emt 0:01:02]} 40. Be4 {[%emt 0:01:03]} Kd7 {[%emt 0:01:19]} 41. Kc4 {[%emt 0:00:31]} Ne2 {[%emt 0:00:47]} 42. Bf3 {[%emt 0:00:37]} Nd4 {[%emt 0:00:53]} 43. Be4 {[%emt 0:00:17]} h6 {[%emt 0:00:05]} 44. h4 {[%emt 0:01:16]} Kd8 {[%emt 0:01:08]} 45. Kc3 {[%emt 0:00:24]} Ne2+ {[%emt 0:00:42]} 46. Kc4 {[%emt 0:00:32]} Kd7 {[%emt 0:00:42]} 47. Bg2 {[%emt 0:00:34]} Kc8 {[%emt 0:02:09]} 48. h5 {[%emt 0:00:25]} Nd4 {[%emt 0:00:41]} 49. Be4 {[%emt 0:00:19]} Kd8 {[%emt 0:00:11]} 50. Kd3 {[%emt 0:00:33]} Kd7 {[%emt 0:00:39]} 51. Bg2 {[%emt 0:00:33]} Nb3 {[%emt 0:00:31]} 52. Kc4 {[%emt 0:00:06]} Nd4 {[%emt 0:00:35]} 53. Kd3 {[%emt 0:00:07]} Ke7 {[%emt 0:00:46]} 54. Kc4 {[%emt 0:00:52]} Kd8 {[%emt 0:00:42]} 55. Kd3 {[%emt 0:00:18]} Kc8 {[%emt 0:00:13]} 56. Bh1 {[%emt 0:00:37]} Kd7 {[%emt 0:01:17]} 57. Bg2 {[%emt 0:00:09]} Nb5 {[%emt 0:00:26]} 58. Be4 {[%emt 0:00:29]} Nd4 {[%emt 0:00:16]} 59. Bf3 e4+ 60. Kxe4 1/2-1/2